Cogmind - Beta 10.2 @@@ ROGUE MODE // 2021.08.15 @ 21:03:24 Player: EyeSayUgh Result: Self-destructed Performance ------------- Evolutions (1) 500 Regions Visited (2) 400 Robots Destroyed (10) 50 Value Destroyed (142) 142 Prototype IDs (5) 100 Alien Tech Used (0) 0 Bonus (0) 0 TOTAL SCORE: 1192 Bonus ------- None Cogmind --------- Core Integrity 235/400 Matter 252/300 Energy 157/265 System Corruption 0% Temperature Cool (391) Movement Core (400) Ox7 Location -9/Materials Parts ------- > --- POWER (1) -------- Improved Ion Engine > --- PROPULSION (3) --- (None) > --- UTILITY (3) ------ Large Storage Unit Signal Interpreter > --- WEAPON (2) ------- (None) > --- INVENTORY (10) --- Aluminum Leg Aluminum Leg Improved Aluminum Leg Large Matter Pod (26) Propulsion Shielding Mining Laser Peak State ------------ > --- POWER ------------ Ion Engine > --- PROPULSION ------- Improved Aluminum Leg Improved Aluminum Leg Improved Aluminum Leg > --- UTILITY ---------- Large Storage Unit Signal Interpreter ECM Suite > --- WEAPON ----------- Particle Gun Particle Gun > --- INVENTORY -------- Aluminum Leg Aluminum Leg Improved Aluminum Leg Large Matter Pod Propulsion Shielding Heavy Assault Rifle Heavy Assault Rifle Mining Laser [Rating: 15] Favorites ----------- Power Light Ion Engine Engine Light Ion Engine Propulsion Improved Aluminum Leg Treads Light Treads Leg Improved Aluminum Leg Utility Large Storage Unit Device ECM Suite Storage Large Storage Unit Processor Signal Interpreter Weapon Particle Gun Energy Gun Particle Gun Ballistic Gun Assault Rifle Build | -11 -10 -9 ------- Run | Scr Mat Mat Slots Evolved 2 | . . 2 Power . | . . . Propulsion 1 | . . 1 Utility 1 | . . 1 Weapon . | . . . Parts Attached 20 | 6 8 6 Power 3 | 1 1 1 Engine 3 | 1 1 1 Core . | . . . Reactor . | . . . Propulsion 5 | 2 2 1 Treads 2 | 2 . . Leg 3 | . 2 1 Wheel . | . . . Hover . | . . . Flight . | . . . Utility 5 | 1 3 1 Device 1 | . 1 . Storage 3 | 1 2 . Processor 1 | . . 1 Hackware . | . . . Protection . | . . . Artifact . | . . . Weapon 7 | 2 2 3 Energy Gun 4 | 1 2 1 Energy Cannon . | . . . Ballistic Gun 3 | 1 . 2 Ballistic Cannon . | . . . Launcher . | . . . Special Weapon . | . . . Impact Weapon . | . . . Slashing Weapon . | . . . Piercing Weapon . | . . . Special Melee Weapon . | . . . Unidentified Prototypes . | . . . Parts Lost 10 | . 1 9 Power 2 | . 1 1 Propulsion 3 | . . 3 Utility 1 | . . 1 Weapon 4 | . . 4 Highest Loss Streak 9 | . 1 9 Average Slot Usage (%) 93 | . 93 94 Engine 9 | . 8 10 Treads 12 | . 17 . Leg 15 | . 10 30 Device 4 | . 2 9 Storage 20 | . 24 11 Processor 2 | . . 11 Energy Gun 19 | . 18 20 Ballistic Gun 6 | . 9 1 Naked Turns . | . . . Heaviest Build 28 | 11 28 28 Greatest Support 40 | 3 40 39 Greatest Overweight (x) 3 | 3 3 1 Average Overweight (x) . | 2 . . Largest Inventory Capacity 10 | 6 10 10 Average Capacity 8 | 5 8 10 Most Carried 10 | 3 10 9 Average Carried 6 | 1 6 7 Final Capacity 10 | 6 10 10 Final Carried 10 | 3 10 6 Class Distribution -------------------- 100% | Mutant Dominant Class ---------------- Mutant | -10/Materials Mutant | -9/Materials Resources | -11 -10 -9 ----------- Run | Scr Mat Mat Matter Collected 433 | 257 176 . Remotely . | . . . Salvage Created 219 | . 176 43 Parts 18 | . 17 1 Haulers Intercepted . | . . . Recyclers Shooed . | . . . Parts Field Recycled . | . . . Retrieved Matter . | . . . Parts Self-Destructed . | . . . Prevented . | . . . Kills | -11 -10 -9 ------- Run | Scr Mat Mat Combat Hostiles Destroyed 7 | . 6 1 Guns 7 | . 6 1 Classes Destroyed 3 | . 2 1 Watcher 3 | . 3 . Swarmer 6 | . 6 . Grunt 1 | . . 1 Best Kill Streak 2 | . 2 1 Combat Bots Only 2 | . 2 1 Max Kills in Single Turn 1 | . 1 1 Gunslinging . | . . . Exploded . | . . . Melee . | . . . Uniques/NPCs Destroyed . | . . . Combat | -11 -10 -9 -------- Run | Scr Mat Mat Damage Taken 1208 | . 230 978 Core 191 | . 26 165 Absorbed by Shields . | . . . Core Remaining (%) 94 | 100 89 . Volleys Fired 39 | . 27 12 Largest 2 | . 2 2 Hottest 130 | . 130 130 Shots Fired 78 | . 54 24 Gun 78 | . 54 24 Cannon . | . . . Launcher . | . . . Special . | . . . Kinetic 35 | . 24 11 Thermal 19 | . 6 13 Explosive . | . . . Electromagnetic 24 | . 24 . Robot Hit Streak 8 | . 5 8 Robot Miss Streak 5 | . 3 5 Penetration Max . | . . . Secondary Targets 1 | . 1 . Max Gunslinging Chain 1 | . 1 . Shots Hit Robots 44 | . 28 16 Core Hits 14 | . 10 4 Critical Hits . | . . . Critical Kills . | . . . Critical Parts Destroyed . | . . . Melee Attacks . | . . . Impact . | . . . Slashing . | . . . Piercing . | . . . Sneak Attacks . | . . . Combat Hostiles . | . . . Follow-up Attacks . | . . . Damage Inflicted 531 | . 298 233 Guns 531 | . 298 233 Cannons . | . . . Explosions . | . . . Melee . | . . . Ramming . | . . . Kinetic 249 | . 90 159 Thermal 123 | . 49 74 Explosive . | . . . Electromagnetic 159 | . 159 . Impact . | . . . Slashing . | . . . Piercing . | . . . Highest Corruption . | . . . Average Corruption . | . . . Corruption Purged . | . . . Overload Shots . | . . . Overflow Damage . | . . . Projectiles . | . . . Explosions . | . . . Melee . | . . . Knockbacks . | . . . Impact . | . . . Kinetic . | . . . Secondary . | . . . Self-Inflicted Damage . | . . . Shots . | . . . Rammed . | . . . Targets Rammed . | . . . Kicked . | . . . Crushed . | . . . Highest Temperature 391 | . 69 391 Average Temperature 171 | . 32 220 Received Heat Transfer 372 | . . 372 Effects 3 | . . 3 Interference 3 | . . 3 Siege Activations . | . . . Robots Corrupted . | . . . Combat Hostiles . | . . . Parts Fried 1 | . 1 . Impact Corruptions . | . . . Robots Melted . | . . . Combat Hostiles . | . . . Parts Melted . | . . . Heat Transferred 296 | . 111 185 Parts Sabotaged . | . . . Parts Stolen . | . . . Parts Stripped . | . . . Power Chain Reactions . | . . . Missiles Intercepted . | . . . Alert | -11 -10 -9 ------- Run | Scr Mat Mat Peak Influence 176 | . 176 75 Initial 31 | . . 31 Average 42 | . 55 23 Maximum Alert Level . | . . . Low Security (%) 100 | 100 100 100 Level 1 . | . . . Level 2 . | . . . Level 3 . | . . . Level 4 . | . . . Level 5 . | . . . High Security . | . . . Max Security . | . . . Squads Dispatched 2 | . 1 1 Investigation . | . . . Extermination . | . . . Reinforcement 2 | . 1 1 Assault . | . . . Garrison . | . . . Intercept . | . . . Construction Impeded . | . . . Haulers Reinforced . | . . . Stealth | -11 -10 -9 --------- Run | Scr Mat Mat Distress Signals 2 | . 1 1 Communications Jammed . | . . . Distress Signals . | . . . Times Spotted 27 | . 16 11 Peak Tracking Total 7 | . 3 7 Tactical Retreats 3 | . 1 2 Traps | -11 -10 -9 ------- Run | Scr Mat Mat Traps Triggered . | . . . Indirectly . | . . . Trap Hack Attempts . | . . . Triggered . | . . . Disarmed . | . . . Reprogrammed . | . . . Reused . | . . . Traps Extracted . | . . . Installed . | . . . Triggered . | . . . Machines | -11 -10 -9 ---------- Run | Scr Mat Mat Machines Disabled . | . . . Max in Single Turn . | . . . Machines Sabotaged . | . . . Garrisons Compromised . | . . . Overloaded Fab Kills . | . . . Fab Network Shutdowns . | . . . Hacking | -11 -10 -9 --------- Run | Scr Mat Mat Machines Accessed 9 | . 4 5 Terminals 8 | . 4 4 Fabricators . | . . . Repair Stations . | . . . Recycling Units . | . . . Scanalyzers 1 | . . 1 Garrison Access . | . . . Total Hacks 19 | . 10 9 Successful 14 | . 7 7 Failed 5 | . 3 2 Catastrophic 2 | . 1 1 Database Lockouts . | . . . Manual . | . . . Terminals 16 | . 10 6 Fabricators . | . . . Repair Stations . | . . . Recycling Units . | . . . Scanalyzers 3 | . . 3 Garrison Access . | . . . Terminal Hacks 11 | . 7 4 Record 1 | . . 1 Robot Analysis 1 | . 1 . Prototype ID Bank 2 | . 1 1 Emergency Access Points 1 | . . 1 Unreport Threat 2 | . 1 1 Locate Traps 1 | . 1 . Dispatch Records 1 | . 1 . Reinforcement Status 1 | . 1 . Recall Reinforcements 1 | . 1 . Fabricator Hacks . | . . . Repair Station Hacks . | . . . Recycling Unit Hacks . | . . . Scanalyzer 3 | . . 3 Insert Component 2 | . . 2 Analyze 1 | . . 1 Garrison Access Hacks . | . . . Unauthorized Hacks . | . . . Terminals . | . . . Fabricators . | . . . Repair Stations . | . . . Recycling Units . | . . . Scanalyzers . | . . . Garrison Access . | . . . Data Cores Recovered . | . . . Used . | . . . Hacking Detections 7 | . 2 5 Full Trace Events . | . . . Feedback Events . | . . . Feedback Blocked . | . . . Robot Schematics Acquired . | . . . Robots Built . | . . . Matter . | . . . Time . | . . . Total Robot Build Rating . | . . . Part Schematics Acquired 1 | . . 1 Parts Built . | . . . Matter . | . . . Time . | . . . Total Part Build Rating . | . . . Parts Repaired . | . . . Time . | . . . Parts Recycled . | . . . Recycled Matter . | . . . Retrieved Matter . | . . . Retrieved Components . | . . . Parts Scanalyzed 1 | . . 1 Part Schematics Acquired 1 | . . 1 Parts Damaged . | . . . Bothacking | -11 -10 -9 ------------ Run | Scr Mat Mat Used RIF Installer . | . . . Robots Hacked . | . . . Non-combat . | . . . Combat . | . . . Robot Hacks Applied . | . . . Relay Couplers Released . | . . . Robots Rewired . | . . . Allies Hacked . | . . . Hacks Repelled . | . . . Allies | -11 -10 -9 -------- Run | Scr Mat Mat Total Allies . | . . . Largest Group . | . . . Highest-Rated Group . | . . . Highest-Rated Ally . | . . . Total Orders . | . . . Ally Attacks . | . . . Total Damage . | . . . Kills . | . . . Allies Corrupted . | . . . Allies Melted . | . . . Intel | -11 -10 -9 ------- Run | Scr Mat Mat Robot Analysis Total 1 | . 1 . Derelict Logs Recovered . | . . . Drone Launches . | . . . Drone Recoveries . | . . . Exploration | -11 -10 -9 ------------- Run | Scr Mat Mat Turns Passed 1121 | 90 750 281 Spaces Moved 505 | 48 347 110 Core 49 | 48 1 . Treads 228 | . 228 . Legs 228 | . 118 110 Wheels . | . . . Hover . | . . . Flight . | . . . Fastest Speed 50 | 50 120 120 Average Speed 145 | 166 150 120 Slowest Speed 200 | 200 200 150 Overloaded Moves . | . . . Propulsion Burnouts . | . . . Robots Hopped . | . . . Cave-ins Triggered . | . . . Exploration Rate (%) 27 | 4 64 13 Regions Visited 2 Branch Regions . Pre-discovered Areas . | . . . Known Exits Taken . | . . . Unknown Exits Taken 2 | 1 1 . Scrap Searched . | . . . Spaces Dug . | . . . Terrain Destroyed . | . . . Melee . | . . . Projectile . | . . . AOE . | . . . Terrain Rammed . | . . . Walls Destroyed . | . . . Machines Disabled . | . . . Actions | -11 -10 -9 --------- Run | Scr Mat Mat Total 810 | 56 521 233 Wait 225 | . 120 105 Move 503 | 47 346 110 Hop . | . . . Pick Up 15 | 3 12 . Fast Attach 12 | 6 5 1 Attach 5 | . 1 4 Detach . | . . . Swap 3 | . 2 1 Drop 8 | . 8 . Fire 39 | . 27 12 Melee . | . . . Ram . | . . . Kick . | . . . Crush . | . . . Escape Stasis . | . . . Rewire . | . . . Trap . | . . . Miscellaneous . | . . . Route ------- -11/Scrapyard -10/Materials -9/Materials History --------- Turn | Location | Event 9 | -11/Scrapyard | Discovered new exit (range 16) 91 | -11/Scrapyard | Entered Materials 316 | -10/Materials | Build established: Mutant 815 | -10/Materials | Discovered new exit (range 14) 841 | -10/Materials | Entered another Materials area 841 | -9/Materials | Evolved 2 slots: Propulsion x1, Utility x1 1122 | -9/Materials | Self-destructed Last Messages --------------- (61,34) (61,38) Map updated. 01037_ Connecting with Terminal... 01042_ K-01 Serf collects debris. 01089_ ECM Suite destroyed. 01091_ U-05 Engineer lays Concrete. 01092_ Overheating: System interference. 01092_ Particle Gun temporarily disabled. 01094_ Particle Gun destroyed. 01103_ Imp. Aluminum Leg destroyed. 01105_ L-31 Rogue destroyed. 01106_ G-34 Mercenary destroyed. 01107_ Hvy. Assault Rifle destroyed. 01108_ Ion Engine destroyed. 01109_ Imp. Aluminum Leg destroyed. 01110_ Acquired Imp. Ion Engine. 01119_ Hvy. Assault Rifle destroyed. 01120_ R-06 Scavenger collects Katana. 01121_ Particle Gun destroyed. Map ----- +----------------------------------------------------+ | ?????????????????????????????????????????????????? | | ?????????????????????????????????????????????????? | | ?????????????????????????????????????????????????? | | ?????????????????????????????????????????????????? | | ?????????????????????????????????????????????????? | | ?????????????????????##############??????????????? | | ?????????????????????# # "" #??????????????? | | ?????????????????????# # ""S #??????????????? | | ?????????????????????# # "" #??????????????? | | ??????????????######## + #??????????????? | | ??????????????# # ! #??????????????? | | ??????????????# #! """ #??????????????? | | ??????????????# # """ #??????????????? | | ???????######## ######## """ #??????????????? | | ???????# # #??????# #??????????????? | | ???????# "" # #?????###########??????????????? | | ???????# "T + ####### #??????????????????? | | ???????# "" # "" #??????????????????? | | ???????# # T #??????????????????? | | ???????# # #??????????????????? | | ???????################## #??????????????????? | | ????????????????????????## ##########??????????? | | ?????????????????????????# # #??????????? | | ?????????????????????????# #! "T" #??????????? | | ????????????############## # #??????????? | | ????????? @ g # #??????????? | | ????????? u r %= + #??????????? | | ????????? a g !!gY # """"" #??????????? | | ???????????####+########## # """"" #??????????? | | ?????????????????????????# # """"" #??????????? | | ?????????????????????????# # #??????????? | | ?????????????????????????# #######+##??????????? | | ?????????????????????????# #?????# #???????????? | | ?????????????????????????# #?????# #???????????? | | ?????????????????????????# #?????# #???????????? | | ?????????????????????????# #######+##??????????? | | ?????????????????????????# # #??????????? | | ?????????????????????????# o # """ #??????????? | | ???????????????# ######### # """ #??????????? | | ???????????????# # """ #??????????? | | ???????????????# + #??????????? | | ???????????? # #??????????? | | ????????????????####+###### ## #??????????? | | ??????????????????????????# ## "T" #??????????? | | ??????????????????????????# ## """ #??????????? | | ??????????????????????????# ###########??????????? | | ??????????????????????????# #????????????????????? | | ??????????????????????????# #????????????????????? | | ??????????????????????????# #????????????????????? | | ??????????????????????????# #????????????????????? | +----------------------------------------------------+ Best States ------------- Heat Dissipation 28 Energy Generation 12 Energy Capacity 265 Matter Stores 337 Matter Capacity 450 Sight Range 16 Terrain Scan Density 10 ECM Strength 1 Evasion (%) 50 Recoil Reduction 2 Item Schematics ----------------- Hvy. Assault Rifle | -9/Materials | Scanalyzed Robot Schematics ------------------ None Fabricated ------------ Nothing Alien Tech Used ----------------- None Achievements -------------- GoHome() Challenges ------------ None Game ------ Seed WardroneImprinterKatana Manual? 0 Play Time 00:22:45 Cumulative 8.5 hours Start 2021.08.15 @ 20:31:42 End 2021.08.15 @ 21:03:24 Sessions 1 Manual Loads 0 Difficulty Rogue Special Mode None Game No. 11 Rogue 11 Adventurer 0 Explorer 0 Win Type - Total 0 Types 0/0/0/0/0/0/0/0/0 Lore% 6 Gallery% 15 Achievement% 12 Wizard Run 0 Options --------- ASCII 0 Keyboard 0 Movement Mouse Keybinds 0 Fullscreen 2 Font 14/SmallcapsGlow Map View 84x54 Tactical HUD 1 Map Filters NONE Filters NONE Steam 1 RUN: 46eca389-2c60-40ed-afd9-4f23b3072aea